bitfinex-derivatives/quotes_SOLF0:USTF0_20250730
["timestamp","ask_amount","ask_price","bid_price","bid_amount"]
[1753911076588,3.03,175.75,175.72,3.01]
[1753911076793,3.03,175.74,175.72,5.6918]
[1753911077090,3.03,175.74,175.73,3.01]
[1753911077291,3.03,175.74,175.73,9.66054445]
[1753911077790,3.03,175.74,175.73,15.35204445]
[1753911077987,3.03,175.79,175.73,9.66054445]
[1753911078293,3.03,175.77,175.71,6.65054445]
[1753911078489,3.03,175.76,175.73,3.01]
[1753911078690,3.03,175.76,175.71,6.65054445]
[1753911078887,3.03,175.76,175.72,3.01]
[1753911079087,3.03,175.76,175.72,8.7019]
[1753911079394,8.7206,175.76,175.72,3.01]
[1753911079591,3.03,175.75,175.72,3.01]
[1753911080383,3.03,175.75,175.72,8.7018]
[1753911080995,8.7206,175.76,175.73,3.01]
[1753911081196,3.03,175.75,175.71,6.65054445]
[1753911081398,3.03,175.75,175.73,3.01]
[1753911081591,3.03,175.75,175.71,6.65054445]
[1753911081894,3.03,175.75,175.71,9.66054445]
[1753911082090,3.03,175.79,175.71,6.65054445]
[1753911082297,3.03,175.75,175.67,6.65054445]
[1753911082595,8.7216,175.73,175.69,8.7026]
[1753911082797,3.03,175.72,175.69,8.7026]
[1753911083098,3.03,175.71,175.7,3.01]
[1753911083798,3.03,175.77,175.7,3.01]
[1753911084095,3.03,175.75,175.7,3.01]
[1753911084296,8.7211,175.75,175.71,5.6919]
[1753911084496,3.03,175.74,175.72,3.01]
[1753911085096,8.7212,175.74,175.72,3.01]
[1753911085294,3.03,175.73,175.72,3.01]
[1753911085487,3.03,175.72,175.66,3.01]
[1753911085699,3.03,175.68,175.66,3.01]
[1753911085900,3.03,175.72,175.66,3.01]
[1753911086095,3.03,175.7,175.66,3.01]
[1753911086297,3.03,175.7,175.67,8.7035]
[1753911086698,3.03,175.7,175.68,3.01]
[1753911087098,3.03,175.69,175.68,3.01]
[1753911088302,3.03,175.74,175.68,3.01]
[1753911088501,3.03,175.72,175.68,3.01]
[1753911088698,3.23,175.71,175.69,3.16]
[1753911088906,3.23,175.71,175.7,3.16]
[1753911090303,8.9216,175.73,175.7,3.16]
[1753911090505,3.23,175.73,175.71,6.65054445]
[1753911090802,3.23,175.73,175.72,3.16]
[1753911092804,3.23,175.75,175.72,3.16]
[1753911093005,3.23,175.74,175.73,3.16]
[1753911093601,7.68786448,175.74,175.73,3.16]
[1753911096607,4.45786448,175.74,175.73,3.16]
[1753911096806,7.68786448,175.74,175.73,3.16]
[1753911097309,3.23,175.73,175.66,3.16]
[1753911097497,3.23,175.71,175.66,3.16]
[1753911097701,4.45786448,175.7,175.68,3.16]
[1753911097905,3.23,175.74,175.68,3.16]
[1753911098202,8.8065589,175.76,175.69,7.24034942]
[1753911098203,3.23,175.72,175.69,7.24034942]
[1753911098408,3.23,175.76,175.72,3.16]
[1753911098612,3.23,175.74,175.73,4.08034942]
[1753911098900,7.70534739,175.74,175.73,4.08034942]
[1753911101704,7.70534739,175.74,175.71,4.08034942]
[1753911101705,3.23,175.73,175.71,4.08034942]
[1753911101903,7.70534739,175.72,175.71,7.24034942]
[1753911102610,3.23,175.71,175.67,7.24034942]
[1753911102906,3.23,175.69,175.68,3.16]
[1753911103111,7.70534739,175.69,175.68,3.16]
[1753911103701,3.23,175.68,175.65,7.24034942]
[1753911104004,4.47534739,175.67,175.65,4.08034942]
[1753911104204,3.23,175.7,175.65,4.08034942]
[1753911104404,4.49019045,175.69,175.66,3.16]
[1753911104611,4.49019045,175.68,175.66,3.16]
[1753911104908,3.23,175.69,175.66,8.8536]
[1753911105108,4.49354044,175.68,175.67,7.24034942]
[1753911105809,4.49354044,175.68,175.67,12.93384942]
[1753911107301,7.72354044,175.68,175.67,12.93384942]
[1753911107910,7.72354044,175.68,175.66,5.6937]
[1753911108112,3.23,175.66,175.65,7.24034942]
[1753911108411,7.72354044,175.66,175.65,7.24034942]
[1753911108914,7.72354044,175.66,175.65,3.16]
[1753911109212,7.72354044,175.66,175.63,4.08034942]
[1753911109213,3.23,175.65,175.63,7.24034942]
[1753911109408,7.72354044,175.64,175.63,7.24034942]
[1753911109604,3.23,175.64,175.63,7.24034942]
[1753911109911,7.73670073,175.64,175.63,7.24034942]
[1753911110515,3.23,175.64,175.63,7.24034942]
[1753911112010,4.50815084,175.64,175.58,4.08034942]
[1753911112212,8.83860637,175.67,175.58,4.08034942]
[1753911112213,3.23,175.62,175.59,3.16]
[1753911113015,3.23,175.61,175.6,3.16]
[1753911114620,3.23,175.63,175.61,8.8554]
[1753911114812,3.23,175.63,175.62,3.16]
[1753911117016,3.23,175.65,175.63,3.16]
[1753911117218,3.23,175.68,175.62,9.77534942]
[1753911117516,10.19077144,175.67,175.64,3.16]
[1753911117710,3.23,175.65,175.64,3.16]
[1753911121522,3.23,175.65,175.62,7.38034942]
[1753911121716,3.23,175.65,175.62,3.3]
[1753911122113,3.09,175.64,175.51,382.54]
[1753911122419,3.09,175.64,175.57,3.3]
[1753911122620,5.6954,175.62,175.57,5.6965]
[1753911122820,3.09,175.6,175.59,3.3]
[1753911124323,5.6949,175.63,175.59,3.3]
[1753911124525,3.09,175.61,175.6,3.3]
[1753911124714,4.08034942,175.67,175.61,3.3]
[1753911125024,3.09,175.63,175.61,3.3]
[1753911125316,3.09,175.62,175.61,3.3]
[1753911125521,5.6947,175.64,175.6,9.77604942]
[1753911125726,3.09,175.63,175.62,3.3]
[1753911126325,4.08034942,175.7,175.61,3.3]
[1753911126622,3.09,175.67,175.6,7.38034942]
[1753911126826,5.6944,175.65,175.61,3.3]
[1753911127122,3.09,175.63,175.62,3.3]
[1753911127622,4.08034942,175.7,175.62,4.08034942]
[1753911127817,3.09,175.65,175.64,3.3]
[1753911132322,3.09,175.69,175.62,4.08034942]
[1753911132530,3.09,175.69,175.62,7.38034942]
[1753911132724,3.09,175.69,175.63,3.3]
[1753911133124,5.6937,175.67,175.63,3.3]
[1753911133327,3.09,175.66,175.64,3.3]
[1753911135031,3.09,175.66,175.65,3.3]
[1753911138427,3.09,175.71,175.65,3.3]
[1753911138927,3.09,175.68,175.66,3.3]
[1753911140639,3.09,175.67,175.66,3.3]
[1753911141839,3.09,175.67,175.64,3.3]
[1753911142434,5.694,175.66,175.64,3.3]
[1753911142643,3.09,175.65,175.62,3.3]
[1753911142942,3.09,175.65,175.6,4.08034942]
[1753911143142,3.09,175.64,175.6,3.3]
[1753911143648,3.09,175.61,175.6,3.3]
[1753911144855,3.09,175.63,175.6,3.3]
[1753911145041,3.09,175.64,175.61,3.3]
[1753911145242,3.09,175.64,175.59,3.3]
[1753911145547,3.09,175.62,175.6,3.3]
[1753911145747,3.09,175.62,175.61,3.3]
[1753911146953,3.09,175.62,175.55,105.22]
[1753911146954,3.09,175.62,175.59,3.3]
[1753911147445,4.08034942,175.64,175.57,5.6966]
[1753911147747,3.09,175.63,175.57,8.9966]
[1753911147949,3.09,175.63,175.59,3.3]
[1753911148150,5.6952,175.62,175.59,3.3]
[1753911148350,3.09,175.6,175.59,3.3]
[1753911148554,8.7852,175.62,175.6,3.3]
[1753911148855,3.09,175.62,175.6,3.3]
[1753911149056,3.24,175.64,175.6,3.3]
[1753911149349,3.24,175.63,175.6,3.3]
[1753911149944,4.08034942,175.68,175.6,3.3]
[1753911150148,3.24,175.62,175.6,3.3]
[1753911150346,3.24,175.62,175.61,3.14]
[1753911152345,3.24,175.62,175.55,105.22]
[1753911152346,8.9351,175.62,175.58,4.08034942]
[1753911152549,3.24,175.61,175.6,3.14]
[1753911157250,5.6948,175.63,175.6,3.14]
[1753911157451,3.24,175.62,175.6,3.14]
[1753911157949,8.9351,175.62,175.58,9.77654942]
[1753911158258,8.9351,175.62,175.61,3.14]
[1753911159161,3.24,175.62,175.61,3.14]
[1753911160556,8.9351,175.62,175.61,3.14]
[1753911161261,3.24,175.62,175.61,3.14]
[1753911163059,8.83836769,175.68,175.61,3.14]
[1753911163060,3.24,175.68,175.61,3.14]
[1753911163251,3.24,175.66,175.61,3.14]
[1753911163961,3.24,175.66,175.61,8.8354]
[1753911164159,8.9341,175.66,175.62,3.14]
[1753911164360,5.6941,175.66,175.62,3.14]
[1753911164560,3.24,175.65,175.62,3.14]
[1753911165260,8.9341,175.65,175.62,3.14]
[1753911165556,3.24,175.68,175.63,3.14]
[1753911165858,3.24,175.68,175.65,3.14]
[1753911166058,3.24,175.68,175.66,3.14]
[1753911166659,5.6937,175.67,175.66,3.14]
[1753911166859,8.9337,175.67,175.66,3.14]
[1753911167254,3.24,175.67,175.66,3.14]
[1753911167460,3.24,175.67,175.65,3.14]
[1753911167759,3.24,175.67,175.66,7.22034942]
[1753911167954,3.24,175.69,175.67,3.14]
[1753911168155,8.8582943,175.74,175.66,4.08034942]
[1753911168355,3.24,175.71,175.66,9.77414942]
[1753911168660,3.24,175.68,175.66,9.77414942]
[1753911168962,3.24,175.68,175.66,4.08034942]
[1753911169255,3.24,175.68,175.67,3.14]
[1753911170760,3.24,175.68,175.65,3.14]
[1753911171755,5.6937,175.67,175.65,3.14]
[1753911172061,3.24,175.66,175.65,3.14]
[1753911172457,3.24,175.66,175.61,7.22034942]
[1753911172758,3.24,175.66,175.62,3.14]
[1753911172959,3.24,175.66,175.64,3.14]
[1753911174961,3.24,175.66,175.63,9.77484942]
[1753911175160,3.24,175.66,175.65,3.14]
[1753911175753,3.24,175.66,175.63,9.77484942]
[1753911175754,3.24,175.66,175.64,3.14]
[1753911176460,3.24,175.66,175.6,3.14]
[1753911177261,3.24,175.63,175.61,3.14]
[1753911177463,3.24,175.62,175.6,5.6956]
[1753911177865,3.24,175.62,175.59,9.77634942]
[1753911178065,3.24,175.62,175.6,3.14]
[1753911178365,3.24,175.62,175.59,9.77634942]
[1753911178366,3.24,175.62,175.61,3.14]
[1753911182666,8.9351,175.62,175.59,4.08034942]
[1753911182966,15.74744726,175.83,175.51,382.54]
[1753911182967,3.03,175.64,175.57,7.31034942]
[1753911183167,3.03,175.64,175.58,3.23]
[1753911183670,3.03,175.64,175.58,4.08034942]
[1753911183873,3.03,175.61,175.59,3.23]
[1753911185173,3.03,175.61,175.6,3.23]
[1753911186769,8.7254,175.61,175.6,3.23]
[1753911186971,3.03,175.61,175.57,4.08034942]
[1753911187164,3.03,175.61,175.59,3.23]
[1753911187369,5.6956,175.61,175.59,3.23]
[1753911187670,3.03,175.6,175.59,3.23]
[1753911190278,5.6952,175.62,175.59,3.23]
[1753911190573,3.03,175.61,175.57,4.08034942]
[1753911190777,3.03,175.61,175.58,3.23]
[1753911190978,3.03,175.6,175.58,3.23]
[1753911194479,3.03,175.6,175.58,8.9264]
[1753911194686,3.03,175.61,175.59,3.23]
[1753911194882,3.03,175.66,175.58,3.23]
[1753911195183,3.03,175.64,175.58,3.23]
[1753911195382,4.44844462,175.65,175.58,3.23]
[1753911195383,4.44844462,175.63,175.58,3.23]
[1753911195582,3.03,175.62,175.58,3.23]
[1753911195782,3.03,175.61,175.58,3.23]
[1753911196587,8.7254,175.61,175.58,3.23]
[1753911196784,3.03,175.6,175.58,3.23]
[1753911196988,3.03,175.6,175.57,5.6965]
[1753911197182,3.03,175.59,175.58,3.23]
[1753911198492,3.03,175.59,175.58,8.9264]
[1753911198688,5.6952,175.62,175.58,8.9264]
[1753911198899,5.6952,175.62,175.6,3.23]
[1753911199603,3.03,175.61,175.6,3.23]
[1753911200000,3.03,175.63,175.54,4.08034942]
[1753911200198,3.03,175.61,175.55,3.23]
[1753911200401,3.03,175.61,175.56,4.08034942]
[1753911200699,3.03,175.61,175.58,3.23]
[1753911201202,3.03,175.59,175.58,3.23]
[1753911201403,3.03,175.59,175.56,4.08034942]
[1753911201705,3.03,175.57,175.55,7.31034942]
[1753911202100,5.6964,175.58,175.55,7.31034942]
[1753911202101,5.6964,175.58,175.56,3.23]
[1753911202298,3.03,175.57,175.56,3.23]
[1753911207910,3.03,175.57,175.56,8.927]
[1753911208305,3.03,175.57,175.56,3.23]
[1753911211508,3.03,175.57,175.55,4.08034942]
[1753911211509,3.03,175.57,175.55,7.09034942]
[1753911220520,3.03,175.57,175.56,3.01]
[1753911222820,3.03,175.57,175.56,5.62654278]
[1753911223014,5.6967,175.57,175.56,2.61654278]
[1753911223220,3.23,175.56,175.54,5.62654278]
[1753911223525,3.23,175.56,175.55,3.01]
[1753911224221,8.927,175.56,175.55,3.01]
[1753911226126,3.23,175.56,175.55,3.01]
[1753911227113,3.23,175.58,175.55,3.01]
[1753911227313,8.867394,175.65,175.57,3.01]
[1753911227517,3.23,175.59,175.58,4.08944912]
[1753911227723,5.6949,175.63,175.59,5.696]
[1753911227925,3.23,175.6,175.59,5.696]
[1753911228122,3.23,175.6,175.59,4.08944912]
[1753911228425,3.23,175.6,175.59,7.09944912]
[1753911229525,3.23,175.6,175.59,4.08944912]
[1753911229826,3.23,175.6,175.59,7.09944912]
[1753911232118,3.23,175.6,175.59,12.79554912]
[1753911232628,3.23,175.6,175.59,7.09944912]
[1753911233928,3.23,175.6,175.59,8.7061]
[1753911234127,3.23,175.6,175.59,12.79554912]
[1753911234630,3.23,175.6,175.59,7.09944912]
[1753911237631,3.23,175.6,175.59,4.08944912]
[1753911238730,3.23,175.6,175.59,7.20944912]
[1753911240627,3.23,175.6,175.59,4.08944912]
[1753911240828,3.23,175.6,175.57,7.20944912]
[1753911241028,3.23,175.6,175.58,3.12]
[1753911241529,4.08944912,175.63,175.56,3.12]
[1753911241735,3.24,175.59,175.56,3.12]
[1753911241933,3.24,175.59,175.55,3.12]
[1753911242127,5.6967,175.57,175.55,3.12]
[1753911242334,3.24,175.56,175.54,3.12]
[1753911242532,3.24,175.56,175.55,3.12]
[1753911242933,7.70728044,175.56,175.52,3.12]
[1753911243135,3.24,175.54,175.49,104.86]
[1753911243341,4.46728044,175.55,175.49,104.86]
[1753911243342,4.08944912,175.55,175.5,3.12]
[1753911243534,3.24,175.53,175.5,3.12]
[1753911243737,3.24,175.57,175.5,3.12]
[1753911243942,3.24,175.55,175.5,5.6989]
[1753911244238,3.24,175.55,175.52,3.12]
[1753911245437,7.70293579,175.54,175.5,3.12]
[1753911245633,3.24,175.53,175.51,3.12]
[1753911245839,5.6971,175.56,175.5,5.699]
[1753911246030,3.24,175.52,175.5,5.699]
[1753911246738,3.24,175.52,175.51,3.12]
[1753911247031,3.24,175.52,175.49,114.64864912]
[1753911247233,3.24,175.52,175.49,104.86]
[1753911247833,3.24,175.52,175.49,107.98]
[1753911248035,3.24,175.52,175.48,3.12]
[1753911248338,3.24,175.52,175.49,3.12]
[1753911249837,8.9386,175.52,175.46,392.56964912]
[1753911250037,3.24,175.51,175.47,3.12]
[1753911252540,8.9387,175.51,175.48,3.12]
[1753911252833,3.24,175.5,175.45,104.88]
[1753911253039,8.9391,175.5,175.45,108.0]
[1753911253236,3.24,175.47,175.45,104.88]
[1753911253431,3.24,175.47,175.39,7.20944912]
[1753911253635,3.24,175.46,175.4,3.12]
[1753911253836,3.24,175.46,175.42,8.8215]
[1753911254037,3.24,175.46,175.42,5.7015]
[1753911254236,3.24,175.46,175.43,3.12]
[1753911256033,3.24,175.46,175.42,5.7015]
[1753911256233,3.24,175.46,175.44,3.12]
[1753911257440,3.24,175.45,175.41,3.12]
[1753911258147,3.24,175.46,175.37,3.12]
[1753911258347,3.24,175.46,175.37,9.79254912]
[1753911258637,3.24,175.46,175.38,3.12]
[1753911258842,3.24,175.42,175.38,3.12]
[1753911259742,3.24,175.42,175.38,8.8229]
[1753911259943,3.24,175.42,175.4,3.12]
[1753911260741,5.7013,175.43,175.37,9.79264912]
[1753911261040,3.24,175.42,175.36,496.5835]
[1753911261241,3.24,175.42,175.36,108.0]
[1753911261437,3.24,175.42,175.37,3.12]
[1753911261645,3.24,175.4,175.37,3.12]
[1753911262638,3.24,175.4,175.37,5.7031]
[1753911262842,3.24,175.4,175.38,3.12]
[1753911266650,3.24,175.43,175.38,3.12]
[1753911267247,8.9415,175.43,175.38,8.8227]
[1753911267443,3.24,175.42,175.39,3.12]
[1753911267649,3.24,175.41,175.39,3.12]
[1753911268349,3.24,175.41,175.39,8.8225]
[1753911268549,3.24,175.41,175.4,3.12]
[1753911268953,4.72448436,175.51,175.39,4.08944912]
[1753911269157,3.32,175.48,175.42,3.21]
[1753911270456,4.72448436,175.54,175.41,4.08944912]
[1753911270656,3.32,175.45,175.41,4.08944912]
[1753911270857,3.32,175.49,175.41,4.08944912]
[1753911271052,3.32,175.45,175.42,3.21]
[1753911271661,9.0206,175.45,175.42,3.21]
[1753911271861,3.32,175.43,175.42,8.9115]
[1753911272064,3.32,175.45,175.42,8.9115]
[1753911272258,3.32,175.44,175.43,3.21]
[1753911273467,3.32,175.46,175.44,3.21]
[1753911273654,3.32,175.45,175.43,5.7013]
[1753911273852,3.32,175.45,175.43,9.79074912]
[1753911274258,3.32,175.49,175.44,3.21]
[1753911274567,3.32,175.49,175.46,3.21]
[1753911275358,3.32,175.49,175.47,3.21]
[1753911276262,5.6996,175.49,175.47,3.21]
[1753911276562,3.32,175.48,175.47,3.21]
[1753911277960,3.32,175.47,175.46,3.21]
[1753911278461,3.32,175.47,175.36,105.87196169]
[1753911278462,3.32,175.47,175.43,3.21]
[1753911278769,3.32,175.47,175.44,3.21]
[1753911279361,3.32,175.46,175.44,3.21]
[1753911280056,3.32,175.46,175.42,8.9114]
[1753911280256,3.32,175.46,175.43,3.21]
[1753911280460,3.32,175.45,175.43,3.21]
[1753911283669,3.32,175.44,175.4,3.21]
[1753911283972,3.32,175.44,175.41,3.21]
[1753911284172,3.32,175.44,175.42,3.21]
[1753911284867,3.32,175.44,175.39,3.21]
[1753911285070,7.81362163,175.43,175.35,3.21]
[1753911285375,3.32,175.41,175.35,3.21]
[1753911286276,5.7022,175.4,175.36,5.7033]
[1753911286478,3.32,175.39,175.37,3.21]
[1753911286883,5.7022,175.4,175.34,104.86]
[1753911287076,3.32,175.38,175.37,3.21]
[1753911287471,4.72448436,175.45,175.37,3.21]
[1753911287678,4.08944912,175.43,175.37,3.21]
[1753911287878,3.32,175.41,175.37,3.21]
[1753911288076,3.32,175.4,175.37,3.21]
[1753911288275,3.32,175.39,175.37,3.21]
[1753911288473,3.32,175.39,175.38,3.21]
[1753911289976,3.32,175.39,175.35,9.79314912]
[1753911289977,7.40944912,175.39,175.35,3.21]
[1753911290278,3.32,175.38,175.35,3.21]
[1753911290669,9.0229,175.38,175.35,3.21]
[1753911290870,3.32,175.37,175.35,3.21]
[1753911291074,3.32,175.36,175.35,3.21]
[1753911291375,4.08944912,175.39,175.35,3.21]
[1753911291586,3.32,175.42,175.38,3.21]
[1753911291774,7.82175338,175.41,175.38,3.21]
[1753911291975,7.82168796,175.4,175.37,9.79244912]
[1753911292280,3.32,175.41,175.38,3.21]
[1753911292477,3.32,175.39,175.38,3.21]
[1753911294780,3.32,175.39,175.31,172.404723]
[1753911294781,3.32,175.39,175.36,5.7035]
[1753911295082,3.32,175.39,175.34,3.21]
[1753911295278,9.0228,175.39,175.34,8.9141]
[1753911295483,9.0228,175.39,175.36,3.21]
[1753911295484,3.32,175.37,175.36,3.21]
[1753911296983,5.7028,175.39,175.34,5.7041]
[1753911296984,5.7029,175.38,175.35,3.21]
[1753911297282,3.32,175.36,175.35,3.21]
[1753911300176,3.32,175.36,175.31,171.41228039]
[1753911300375,3.32,175.36,175.34,3.08]
[1753911300977,4.08944912,175.38,175.31,171.41228039]
[1753911300978,4.75761044,175.42,175.33,3.08]
[1753911301283,3.11,175.38,175.33,3.08]
[1753911301479,5.7042,175.34,175.33,3.08]
[1753911301784,3.11,175.34,175.33,3.08]
[1753911303288,3.11,175.34,175.32,3.08]
[1753911303585,3.11,175.33,175.31,177.11738039]
[1753911304189,3.11,175.33,175.32,3.08]
[1753911305385,5.7044,175.34,175.23,11.4153]
[1753911305576,3.11,175.38,175.3,3.08]
[1753911305780,3.11,175.36,175.31,4.08944912]
[1753911305975,5.7041,175.35,175.31,9.79454912]
[1753911306191,3.11,175.34,175.33,3.08]
[1753911307178,3.11,175.36,175.34,3.08]
[1753911308385,3.11,175.36,175.33,9.79384912]
[1753911308692,3.11,175.36,175.33,4.08944912]
[1753911309093,3.11,175.35,175.34,3.08]
[1753911310490,8.8139,175.35,175.34,3.08]
[1753911310693,3.11,175.35,175.34,3.08]
[1753911311193,3.11,175.38,175.32,3.08]
[1753911311380,5.7037,175.36,175.32,3.08]
[1753911311586,3.11,175.34,175.33,3.08]
[1753911312079,5.7041,175.35,175.31,5.705]
[1753911312285,3.11,175.34,175.32,3.08]
[1753911312494,3.11,175.34,175.31,8.785]
[1753911313694,5.7042,175.34,175.32,3.08]
[1753911313889,3.11,175.33,175.32,3.08]
[1753911316793,5.7046,175.33,175.3,5.7054]
[1753911316998,3.11,175.32,175.3,8.7854]
[1753911317195,4.08944912,175.37,175.3,5.7054]
[1753911317389,3.11,175.31,175.3,5.7054]
[1753911318000,3.11,175.31,175.3,8.7854]
[1753911318495,3.11,175.31,175.3,3.08]
[1753911318895,3.11,175.32,175.3,3.08]
[1753911319697,4.08944912,175.37,175.27,104.86]
[1753911319903,3.11,175.3,175.28,3.08]
[1753911320401,3.11,175.3,175.29,3.08]
[1753911322095,3.11,175.34,175.28,3.08]
[1753911322301,3.11,175.29,175.27,107.94]
[1753911322602,3.11,175.28,175.27,107.94]
[1753911323301,3.11,175.28,175.27,113.6465]
[1753911323897,5.7051,175.32,175.27,113.6465]
[1753911323898,3.11,175.3,175.27,113.6465]
[1753911324096,3.11,175.29,175.28,3.08]
[1753911324396,3.11,175.29,175.26,3.08]
[1753911324601,3.11,175.29,175.27,3.08]
[1753911324804,5.706,175.29,175.27,3.08]
[1753911325107,3.11,175.28,175.27,3.08]
[1753911325501,3.11,175.36,175.25,3.08]
[1753911325803,3.11,175.31,175.25,3.08]
[1753911326104,3.11,175.31,175.25,8.7869]
[1753911326304,3.11,175.31,175.26,3.08]
[1753911327005,3.11,175.29,175.26,3.08]
[1753911327305,3.11,175.29,175.23,3.08]
[1753911328006,3.11,175.29,175.23,8.7877]
[1753911328202,3.11,175.29,175.23,3.08]
[1753911328403,3.11,175.24,175.22,5.708]
[1753911328603,3.11,175.23,175.21,104.86]
[1753911329000,3.11,175.23,175.22,3.06]
[1753911329411,3.13,175.24,175.21,104.86]
[1753911329606,5.7077,175.24,175.22,3.06]
[1753911329906,3.13,175.23,175.22,3.06]
[1753911330507,3.13,175.27,175.19,8.7689]
[1753911330706,3.13,175.23,175.21,3.06]
[1753911330909,3.13,175.22,175.19,3.06]
[1753911331405,3.13,175.22,175.19,8.769]
[1753911331605,3.13,175.22,175.2,3.06]
[1753911332808,3.13,175.21,175.18,4.08944912]
[1753911333005,3.13,175.21,175.18,9.79854912]
[1753911333305,3.13,175.22,175.19,3.06]
[1753911333609,3.13,175.21,175.19,3.06]
[1753911333799,3.13,175.21,175.18,3.06]
[1753911333998,5.7083,175.22,175.18,3.06]
[1753911334198,3.13,175.2,175.18,3.06]
[1753911334406,3.13,175.2,175.18,3.04]
[1753911335404,3.13,175.2,175.17,4.08944912]
[1753911335805,3.13,175.2,175.15,4.08944912]
[1753911336508,3.13,175.18,175.17,3.06]
[1753911337201,4.08944912,175.18,175.07,4.20420908]
[1753911337403,3.13,175.17,175.1,3.06]
[1753911337907,3.13,175.14,175.1,3.06]
[1753911338110,3.13,175.14,175.1,4.08944912]
[1753911338308,3.13,175.14,175.11,3.06]
[1753911338905,3.13,175.16,175.11,3.06]
[1753911339708,4.08944912,175.2,175.11,3.06]
[1753911339912,8.8396,175.18,175.11,8.7716]
[1753911340211,3.13,175.19,175.09,3.06]
[1753911340406,8.56578992,175.18,175.09,7.14944912]
[1753911340606,3.13,175.16,175.11,5.7114]
[1753911340808,3.13,175.16,175.12,3.06]
[1753911341209,3.13,175.16,175.13,3.06]
[1753911341508,3.13,175.13,175.07,4.20420908]
[1753911341709,4.08944912,175.12,175.07,4.20420908]
[1753911341904,3.13,175.11,175.07,7.26420908]
[1753911342814,5.7126,175.09,175.07,4.20420908]
[1753911343014,3.13,175.08,175.07,4.20420908]
[1753911343212,7.21944912,175.08,175.07,4.20420908]
[1753911343610,12.93214912,175.08,175.07,4.20420908]
[1753911344305,7.21944912,175.08,175.07,4.20420908]
[1753911344510,3.13,175.08,175.07,4.20420908]
[1753911346107,8.8427,175.08,175.07,4.20420908]
[1753911346512,12.93214912,175.08,175.07,4.20420908]
[1753911347414,8.8427,175.08,175.07,4.20420908]
[1753911347622,12.93214912,175.08,175.07,4.20420908]
[1753911348821,8.8427,175.08,175.07,7.26420908]
[1753911349216,8.8427,175.08,175.07,4.20420908]
[1753911351318,8.8427,175.08,175.07,9.08e-06]
[1753911351517,3.13,175.07,175.0,0.02]
[1753911351922,3.13,175.06,175.0,3.08]
[1753911352522,5.7142,175.04,175.0,3.08]
[1753911352821,8.8442,175.04,175.0,3.08]